[Event "Live Chess"]
[Site "Chess.com"]
[Date "2024.06.02"]
[Round "-"]
[White "beltmanjb"]
[Black "Plimsol"]
[Result "0-1"]
[WhiteElo "1731"]
[BlackElo "2390"]
[TimeControl "300"]
[EndTime "8:55:02 PDT"]
[Termination "Plimsol won by resignation"]

1. d4 {[%clk 0:04:58.2]} 1... e6 {[%clk 0:04:59.6]} 2. c4 {[%clk 0:04:57.2]}
2... Nf6 {[%clk 0:04:59.1]} 3. g3 {[%clk 0:04:55.1]} 3... d5 {[%clk 0:04:57.5]}
4. Bg2 {[%clk 0:04:53.7]} 4... dxc4 {[%clk 0:04:56.3]} 5. Nf3 {[%clk 0:04:51.5]}
5... Nc6 {[%clk 0:04:54.9]} 6. Qa4 {[%clk 0:04:46.8]} 6... Bb4+ {[%clk
0:04:47.7]} 7. Bd2 {[%clk 0:04:45]} 7... Nd5 {[%clk 0:04:46.9]} 8. e4 {[%clk
0:04:27]} 8... Nb6 {[%clk 0:04:39.9]} 9. Qc2 {[%clk 0:04:21.4]} 9... Bxd2+
{[%clk 0:04:37.4]} 10. Nbxd2 {[%clk 0:04:19.5]} 10... Nxd4 {[%clk 0:04:36.5]}
11. Nxd4 {[%clk 0:04:11.6]} 11... Qxd4 {[%clk 0:04:35.4]} 12. O-O {[%clk
0:04:11.1]} 12... O-O {[%clk 0:04:33.5]} 13. Rfd1 {[%clk 0:04:06.1]} 13... e5
{[%clk 0:04:30.7]} 14. Rac1 {[%clk 0:03:57.4]} 14... Be6 {[%clk 0:04:28.5]} 15.
Nf3 {[%clk 0:03:51.5]} 15... Qc5 {[%clk 0:04:26.8]} 16. Ng5 {[%clk 0:03:47.8]}
16... Bg4 {[%clk 0:04:25.4]} 17. b4 {[%clk 0:03:22.5]} 17... Bxd1 {[%clk
0:04:20.3]} 18. bxc5 {[%clk 0:03:19.9]} 18... Bxc2 {[%clk 0:04:18.2]} 19. Rxc2
{[%clk 0:03:19.1]} 19... Nd7 {[%clk 0:04:06.7]} 20. Rxc4 {[%clk 0:03:18.1]}
20... h6 {[%clk 0:03:59.2]} 21. Nf3 {[%clk 0:03:14.1]} 21... Rfe8 {[%clk
0:03:54.3]} 22. Bh3 {[%clk 0:03:07.4]} 22... Rad8 {[%clk 0:03:52.9]} 23. Rb4
{[%clk 0:03:05.7]} 23... Nxc5 {[%clk 0:03:50.1]} 24. Rb5 {[%clk 0:02:57.2]}
24... b6 {[%clk 0:03:49]} 25. a4 {[%clk 0:02:54.7]} 25... Nxa4 {[%clk 0:03:47]}
26. Nxe5 {[%clk 0:02:49.5]} 26... a6 {[%clk 0:03:46.3]} 27. Rb4 {[%clk
0:02:42.3]} 27... Rxe5 {[%clk 0:03:44.1]} 28. Rxa4 {[%clk 0:02:40.8]} 28... a5
{[%clk 0:03:43.6]} 29. Rc4 {[%clk 0:02:39.7]} 29... c5 {[%clk 0:03:41.9]} 30.
Bf1 {[%clk 0:02:28.4]} 30... b5 {[%clk 0:03:37.2]} 31. Rc1 {[%clk 0:02:26.4]}
31... c4 {[%clk 0:03:36.8]} 32. f3 {[%clk 0:02:22.8]} 32... a4 {[%clk
0:03:33.5]} 0-1

[Event "Live Chess"]
[Site "Chess.com"]
[Date "2024.06.02"]
[Round "-"]
[White "Bradfield133"]
[Black "yarek"]
[Result "1-0"]
[WhiteElo "1838"]
[BlackElo "1748"]
[TimeControl "300"]
[EndTime "8:55:06 PDT"]
[Termination "Bradfield133 won by resignation"]

1. c4 {[%clk 0:04:56.5]} 1... g6 {[%clk 0:04:59.3]} 2. g3 {[%clk 0:04:54.8]}
2... Bg7 {[%clk 0:04:58.1]} 3. Bg2 {[%clk 0:04:54.7]} 3... c6 {[%clk 0:04:55.7]}
4. Qa4 {[%clk 0:04:51.1]} 4... d5 {[%clk 0:04:52.2]} 5. cxd5 {[%clk 0:04:48.8]}
5... Nf6 {[%clk 0:04:36]} 6. dxc6 {[%clk 0:04:46.4]} 6... bxc6 {[%clk
0:04:31.9]} 7. Nf3 {[%clk 0:04:38.2]} 7... O-O {[%clk 0:04:29.4]} 8. O-O {[%clk
0:04:36.7]} 8... Bd7 {[%clk 0:04:22.2]} 9. Ne5 {[%clk 0:04:34.2]} 9... Nd5
{[%clk 0:04:14.8]} 10. Nxd7 {[%clk 0:04:31.9]} 10... Qxd7 {[%clk 0:04:13]} 11.
Nc3 {[%clk 0:04:28.7]} 11... Nb6 {[%clk 0:04:10.5]} 12. Qc2 {[%clk 0:04:21.1]}
12... Na6 {[%clk 0:04:07.1]} 13. a3 {[%clk 0:04:18.6]} 13... Rab8 {[%clk
0:04:03.9]} 14. b4 {[%clk 0:04:15.3]} 14... Nd5 {[%clk 0:03:54.3]} 15. Rb1
{[%clk 0:04:13.9]} 15... Nac7 {[%clk 0:03:48.5]} 16. Na4 {[%clk 0:04:10.2]}
16... Nb5 {[%clk 0:03:35.6]} 17. Nc5 {[%clk 0:04:07.3]} 17... Qe6 {[%clk
0:03:26.6]} 18. Nxe6 {[%clk 0:04:02.8]} 1-0

[Event "Live Chess"]
[Site "Chess.com"]
[Date "2024.06.02"]
[Round "-"]
[White "RichardABates"]
[Black "ProfPoisson"]
[Result "1-0"]
[WhiteElo "2365"]
[BlackElo "1352"]
[TimeControl "300"]
[EndTime "8:55:07 PDT"]
[Termination "RichardABates won by resignation"]

1. d4 {[%clk 0:04:58]} 1... e6 {[%clk 0:04:57.6]} 2. c4 {[%clk 0:04:56.4]} 2...
f5 {[%clk 0:04:55.5]} 3. g3 {[%clk 0:04:54.7]} 3... Nf6 {[%clk 0:04:53.7]} 4.
Bg2 {[%clk 0:04:53.5]} 4... Be7 {[%clk 0:04:52]} 5. Nf3 {[%clk 0:04:52.1]} 5...
d6 {[%clk 0:04:51.5]} 6. O-O {[%clk 0:04:50.3]} 6... O-O {[%clk 0:04:51.1]} 7.
Nc3 {[%clk 0:04:48.5]} 7... Ne4 {[%clk 0:04:48.9]} 8. Bd2 {[%clk 0:04:46.2]}
8... Nxc3 {[%clk 0:04:46.3]} 9. Bxc3 {[%clk 0:04:44.8]} 9... Bf6 {[%clk
0:04:41.8]} 10. Rc1 {[%clk 0:04:42.4]} 10... a5 {[%clk 0:04:38.3]} 11. Qc2
{[%clk 0:04:18.3]} 11... Qe8 {[%clk 0:04:36]} 12. e4 {[%clk 0:04:16.6]} 12... f4
{[%clk 0:04:23.5]} 13. e5 {[%clk 0:04:14.3]} 13... dxe5 {[%clk 0:04:14.8]} 14.
dxe5 {[%clk 0:04:12.7]} 14... Be7 {[%clk 0:04:09.9]} 15. Rcd1 {[%clk 0:04:04.6]}
15... fxg3 {[%clk 0:04:06.1]} 16. hxg3 {[%clk 0:04:02.9]} 16... Nc6 {[%clk
0:03:58.9]} 17. Qe4 {[%clk 0:03:59.2]} 17... Qh5 {[%clk 0:03:48.8]} 18. g4
{[%clk 0:03:53.7]} 18... Qf7 {[%clk 0:03:37.6]} 19. Qe3 {[%clk 0:03:47.3]} 19...
b6 {[%clk 0:03:28.7]} 20. Ng5 {[%clk 0:03:45.1]} 20... Bxg5 {[%clk 0:03:26.1]}
21. Qxg5 {[%clk 0:03:42.9]} 21... Rb8 {[%clk 0:03:17.2]} 22. Bxc6 {[%clk
0:03:40.1]} 22... Bb7 {[%clk 0:03:05.8]} 23. Bxb7 {[%clk 0:03:36.9]} 23... Rxb7
{[%clk 0:03:04.5]} 24. f4 {[%clk 0:03:36]} 24... h6 {[%clk 0:02:59.5]} 25. Qh4
{[%clk 0:03:31.1]} 25... Qe7 {[%clk 0:02:56.1]} 26. Qxe7 {[%clk 0:03:22.6]} 1-0

[Event "Live Chess"]
[Site "Chess.com"]
[Date "2024.06.02"]
[Round "-"]
[White "Queensandpawns"]
[Black "LL220284LL"]
[Result "1-0"]
[WhiteElo "2255"]
[BlackElo "2448"]
[TimeControl "300"]
[EndTime "8:55:07 PDT"]
[Termination "Queensandpawns won by resignation"]

1. e4 {[%clk 0:04:58.3]} 1... c6 {[%clk 0:04:59.4]} 2. d4 {[%clk 0:04:57.1]}
2... g6 {[%clk 0:04:58.3]} 3. Nc3 {[%clk 0:04:54.6]} 3... Bg7 {[%clk 0:04:57.5]}
4. Bc4 {[%clk 0:04:54.3]} 4... d6 {[%clk 0:04:56]} 5. Nf3 {[%clk 0:04:53.8]}
5... Nd7 {[%clk 0:04:55.6]} 6. Bxf7+ {[%clk 0:04:46]} 6... Kxf7 {[%clk
0:04:54.7]} 7. Ng5+ {[%clk 0:04:45.9]} 7... Ke8 {[%clk 0:04:53.8]} 8. Ne6 {[%clk
0:04:45.8]} 8... Nb6 {[%clk 0:04:52.7]} 9. Nxd8 {[%clk 0:04:44.7]} 9... Kxd8
{[%clk 0:04:51.6]} 10. Bf4 {[%clk 0:04:42.1]} 10... Nf6 {[%clk 0:04:49]} 11. O-O
{[%clk 0:04:40.9]} 11... Rf8 {[%clk 0:04:48]} 12. e5 {[%clk 0:04:40.1]} 12...
Nfd5 {[%clk 0:04:46.7]} 13. Nxd5 {[%clk 0:04:39.1]} 13... Nxd5 {[%clk
0:04:46.6]} 14. Bg3 {[%clk 0:04:38.3]} 14... Kc7 {[%clk 0:04:44.4]} 15. c4
{[%clk 0:04:37.1]} 15... Nf4 {[%clk 0:04:43.1]} 16. exd6+ {[%clk 0:04:37]} 16...
exd6 {[%clk 0:04:42.1]} 17. Qd2 {[%clk 0:04:35.8]} 17... Bh6 {[%clk 0:04:40.2]}
18. Qa5+ {[%clk 0:04:32.3]} 18... b6 {[%clk 0:04:37.7]} 19. Qa3 {[%clk 0:04:32]}
19... Ne2+ {[%clk 0:04:34]} 20. Kh1 {[%clk 0:04:30.9]} 20... Nxg3+ {[%clk
0:04:33.9]} 21. fxg3 {[%clk 0:04:30]} 21... Bf5 {[%clk 0:04:32]} 22. c5 {[%clk
0:04:28.3]} 22... dxc5 {[%clk 0:04:28.7]} 23. dxc5 {[%clk 0:04:28.2]} 23... Kb7
{[%clk 0:04:23.3]} 24. cxb6 {[%clk 0:04:26.4]} 24... axb6 {[%clk 0:04:23.2]} 25.
Qe7+ {[%clk 0:04:24.5]} 25... Ka6 {[%clk 0:04:21.2]} 26. Qxh7 {[%clk 0:04:22.8]}
26... Be3 {[%clk 0:04:19.9]} 27. g4 {[%clk 0:04:14.3]} 27... Rh8 {[%clk
0:04:14.8]} 28. Qf7 {[%clk 0:04:11]} 28... Be4 {[%clk 0:04:08.9]} 29. Qc4+
{[%clk 0:04:08.5]} 1-0

[Event "Live Chess"]
[Site "Chess.com"]
[Date "2024.06.02"]
[Round "-"]
[White "gobbles19"]
[Black "Purple1szed"]
[Result "1-0"]
[WhiteElo "2248"]
[BlackElo "1993"]
[TimeControl "300"]
[EndTime "8:55:14 PDT"]
[Termination "gobbles19 won by resignation"]

1. e4 {[%clk 0:04:58.1]} 1... e5 {[%clk 0:04:58.4]} 2. d4 {[%clk 0:04:56.9]}
2... exd4 {[%clk 0:04:57.5]} 3. c3 {[%clk 0:04:56.6]} 3... dxc3 {[%clk
0:04:57.4]} 4. Bc4 {[%clk 0:04:54]} 4... cxb2 {[%clk 0:04:55.7]} 5. Bxb2 {[%clk
0:04:53.9]} 5... Bb4+ {[%clk 0:04:55.1]} 6. Nd2 {[%clk 0:04:52.7]} 6... Nf6
{[%clk 0:04:53.4]} 7. Bxf7+ {[%clk 0:04:50.7]} 7... Kxf7 {[%clk 0:04:52.5]} 8.
Qb3+ {[%clk 0:04:50.4]} 8... d5 {[%clk 0:04:51.5]} 9. Qxb4 {[%clk 0:04:49.9]}
9... Nc6 {[%clk 0:04:49.3]} 10. Qb3 {[%clk 0:04:48.5]} 10... Be6 {[%clk
0:04:47.2]} 11. e5 {[%clk 0:04:46.6]} 11... Ne4 {[%clk 0:04:43.9]} 12. Ngf3
{[%clk 0:04:44.5]} 12... Rf8 {[%clk 0:04:37.7]} 13. O-O {[%clk 0:04:39.9]} 13...
Qd7 {[%clk 0:04:26.9]} 14. Nxe4 {[%clk 0:04:37.5]} 14... dxe4 {[%clk 0:04:25.4]}
15. Ng5+ {[%clk 0:04:37.1]} 15... Ke7 {[%clk 0:04:23.8]} 16. Ba3+ {[%clk
0:04:29.3]} 1-0

[Event "Live Chess"]
[Site "Chess.com"]
[Date "2024.06.02"]
[Round "-"]
[White "StoreySniper"]
[Black "upoe610"]
[Result "1-0"]
[WhiteElo "2481"]
[BlackElo "2150"]
[TimeControl "300"]
[EndTime "8:55:18 PDT"]
[Termination "StoreySniper won by resignation"]

1. e4 {[%clk 0:04:59.1]} 1... e5 {[%clk 0:04:58.8]} 2. Nf3 {[%clk 0:04:58]} 2...
Nc6 {[%clk 0:04:58.1]} 3. Bb5 {[%clk 0:04:57.2]} 3... a6 {[%clk 0:04:57.2]} 4.
Bxc6 {[%clk 0:04:56.3]} 4... dxc6 {[%clk 0:04:55.9]} 5. d3 {[%clk 0:04:56]} 5...
Bd6 {[%clk 0:04:52.3]} 6. Nbd2 {[%clk 0:04:54.7]} 6... Ne7 {[%clk 0:04:50.9]} 7.
Nc4 {[%clk 0:04:53.2]} 7... Ng6 {[%clk 0:04:49.1]} 8. g3 {[%clk 0:04:49.7]} 8...
Bg4 {[%clk 0:04:47]} 9. h3 {[%clk 0:04:48.9]} 9... Bxf3 {[%clk 0:04:45.4]} 10.
Qxf3 {[%clk 0:04:48]} 10... Qe7 {[%clk 0:04:42.6]} 11. Bd2 {[%clk 0:04:44]}
11... O-O-O {[%clk 0:04:41.1]} 12. O-O-O {[%clk 0:04:42.7]} 12... Kb8 {[%clk
0:04:40.2]} 13. Kb1 {[%clk 0:04:41.9]} 13... f6 {[%clk 0:04:38]} 14. h4 {[%clk
0:04:36.9]} 14... Bc5 {[%clk 0:04:36]} 15. Qg2 {[%clk 0:04:27]} 15... Nf8 {[%clk
0:04:30.3]} 16. f4 {[%clk 0:04:23.6]} 16... Ne6 {[%clk 0:04:29.4]} 17. f5 {[%clk
0:04:20.5]} 17... Nd4 {[%clk 0:04:28.4]} 18. g4 {[%clk 0:04:10.7]} 18... Ka7
{[%clk 0:04:09.6]} 19. g5 {[%clk 0:04:04.9]} 19... Nb5 {[%clk 0:04:08.4]} 20. h5
{[%clk 0:03:46]} 20... Nd6 {[%clk 0:04:05.1]} 21. Ne3 {[%clk 0:03:37.3]} 21...
h6 {[%clk 0:03:55.8]} 22. gxh6 {[%clk 0:03:35.7]} 22... gxh6 {[%clk 0:03:54.7]}
23. Qf3 {[%clk 0:03:22.3]} 23... Rhg8 {[%clk 0:03:44.2]} 24. Rdg1 {[%clk
0:03:21.2]} 24... Nb5 {[%clk 0:03:38.6]} 25. Rg6 {[%clk 0:03:12]} 25... Nd4
{[%clk 0:03:35.5]} 26. Qd1 {[%clk 0:03:02.1]} 26... Rxg6 {[%clk 0:03:25.7]} 27.
hxg6 {[%clk 0:02:56.2]} 27... Qg7 {[%clk 0:03:19.8]} 28. Ng4 {[%clk 0:02:51.3]}
28... Rh8 {[%clk 0:03:06.7]} 29. Bxh6 {[%clk 0:02:44.9]} 29... Qd7 {[%clk
0:03:04.6]} 30. Be3 {[%clk 0:02:40.8]} 30... Rxh1 {[%clk 0:03:00.5]} 31. Qxh1
{[%clk 0:02:39.6]} 31... Bb6 {[%clk 0:02:57.7]} 32. Qh7 {[%clk 0:02:23.4]} 32...
Qd6 {[%clk 0:02:51.6]} 33. a3 {[%clk 0:01:59.3]} 33... Qc5 {[%clk 0:02:47.7]}
34. Qh2 {[%clk 0:01:58.5]} 34... Qa5 {[%clk 0:02:43.5]} 35. Qd2 {[%clk
0:01:53.6]} 35... Qb5 {[%clk 0:02:39.4]} 36. g7 {[%clk 0:01:51.1]} 36... Ba5
{[%clk 0:02:38.4]} 37. Bxd4+ {[%clk 0:01:47.1]} 37... exd4 {[%clk 0:02:35.2]}
38. Qxa5 {[%clk 0:01:44.5]} 38... Qxa5 {[%clk 0:02:34]} 39. g8=Q {[%clk
0:01:44.1]} 39... Qe1+ {[%clk 0:02:32.8]} 40. Ka2 {[%clk 0:01:43.5]} 40... Qd2
{[%clk 0:02:25.2]} 41. Nxf6 {[%clk 0:01:38]} 41... Qxc2 {[%clk 0:02:24.2]} 42.
Qc4 {[%clk 0:01:34.5]} 42... Qf2 {[%clk 0:02:21.7]} 43. Nd7 {[%clk 0:01:27.4]}
1-0

[Event "Live Chess"]
[Site "Chess.com"]
[Date "2024.06.02"]
[Round "-"]
[White "davigator"]
[Black "MagnersCarlsberg2870"]
[Result "1-0"]
[WhiteElo "2327"]
[BlackElo "1743"]
[TimeControl "300"]
[EndTime "8:55:19 PDT"]
[Termination "davigator won by resignation"]

1. e4 {[%clk 0:04:58.8]} 1... e5 {[%clk 0:04:58.1]} 2. Nf3 {[%clk 0:04:57.1]}
2... Nf6 {[%clk 0:04:56.7]} 3. Nxe5 {[%clk 0:04:55]} 3... Nc6 {[%clk 0:04:55.4]}
4. Nxc6 {[%clk 0:04:50]} 4... dxc6 {[%clk 0:04:53.9]} 5. d3 {[%clk 0:04:49.2]}
5... Bc5 {[%clk 0:04:52.3]} 6. Be2 {[%clk 0:04:48]} 6... h5 {[%clk 0:04:42.7]}
7. c3 {[%clk 0:04:47]} 7... Ng4 {[%clk 0:04:38.5]} 8. d4 {[%clk 0:04:46.1]} 8...
Be7 {[%clk 0:04:35.9]} 9. O-O {[%clk 0:04:36.3]} 9... Qd6 {[%clk 0:04:28.2]} 10.
e5 {[%clk 0:04:31]} 10... Qg6 {[%clk 0:04:20.8]} 11. Bd3 {[%clk 0:04:26.6]}
11... f5 {[%clk 0:04:18.6]} 12. Qf3 {[%clk 0:04:18.7]} 12... h4 {[%clk
0:04:14.1]} 13. h3 {[%clk 0:04:05.1]} 13... Nh6 {[%clk 0:04:06.6]} 14. Nd2
{[%clk 0:04:03.2]} 14... Nf7 {[%clk 0:04:00.2]} 15. Nc4 {[%clk 0:04:00.8]} 15...
Bg5 {[%clk 0:03:53.5]} 16. Ne3 {[%clk 0:03:55.1]} 16... c5 {[%clk 0:03:50]} 17.
Bxf5 {[%clk 0:03:52]} 17... Bxf5 {[%clk 0:03:43]} 18. Qxf5 {[%clk 0:03:51.3]}
18... Qxf5 {[%clk 0:03:39.8]} 19. Nxf5 {[%clk 0:03:50.1]} 19... Bxc1 {[%clk
0:03:38.7]} 20. Raxc1 {[%clk 0:03:47]} 20... c4 {[%clk 0:03:36.2]} 21. Nxg7+
{[%clk 0:03:44.9]} 21... Kf8 {[%clk 0:03:34.7]} 22. Ne6+ {[%clk 0:03:43.9]}
22... Ke7 {[%clk 0:03:33.5]} 23. Nxc7 {[%clk 0:03:43.6]} 23... Rac8 {[%clk
0:03:31.1]} 24. Nd5+ {[%clk 0:03:42.4]} 24... Ke6 {[%clk 0:03:29.7]} 25. Nf4+
{[%clk 0:03:41.3]} 25... Kf5 {[%clk 0:03:28.1]} 26. Ne2 {[%clk 0:03:40.3]} 1-0

[Event "Live Chess"]
[Site "Chess.com"]
[Date "2024.06.02"]
[Round "-"]
[White "Kyrylo7770"]
[Black "E2E4colchester"]
[Result "1-0"]
[WhiteElo "1650"]
[BlackElo "1003"]
[TimeControl "300"]
[EndTime "8:55:22 PDT"]
[Termination "Kyrylo7770 won by checkmate"]

1. d4 {[%clk 0:04:58.7]} 1... Nf6 {[%clk 0:04:56.6]} 2. Nf3 {[%clk 0:04:58.2]}
2... d5 {[%clk 0:04:55.4]} 3. Bg5 {[%clk 0:04:56.6]} 3... h5 {[%clk 0:04:54.1]}
4. h4 {[%clk 0:04:55.5]} 4... Nc6 {[%clk 0:04:46.3]} 5. e3 {[%clk 0:04:54.9]}
5... e6 {[%clk 0:04:43.5]} 6. c3 {[%clk 0:04:53.6]} 6... Be7 {[%clk 0:04:42.6]}
7. Nbd2 {[%clk 0:04:52.8]} 7... Ne4 {[%clk 0:04:40.9]} 8. Bxe7 {[%clk
0:04:51.5]} 8... Qxe7 {[%clk 0:04:39.6]} 9. Bb5 {[%clk 0:04:50.3]} 9... Bd7
{[%clk 0:04:37.4]} 10. Bxc6 {[%clk 0:04:49.4]} 10... Bxc6 {[%clk 0:04:36.1]} 11.
Ne5 {[%clk 0:04:48.5]} 11... O-O-O {[%clk 0:04:29.6]} 12. Qb3 {[%clk 0:04:45.3]}
12... f6 {[%clk 0:04:20.3]} 13. Ng6 {[%clk 0:04:42.8]} 13... Qe8 {[%clk
0:04:17.1]} 14. Nxh8 {[%clk 0:04:41.7]} 14... Qxh8 {[%clk 0:04:13.9]} 15. Nxe4
{[%clk 0:04:41.3]} 15... dxe4 {[%clk 0:04:12.3]} 16. O-O-O {[%clk 0:04:39.8]}
16... g5 {[%clk 0:04:04.2]} 17. Qxe6+ {[%clk 0:04:38.6]} 17... Bd7 {[%clk
0:04:03.4]} 18. Qxe4 {[%clk 0:04:36.5]} 18... Qg8 {[%clk 0:04:02.5]} 19. hxg5
{[%clk 0:04:34.4]} 19... fxg5 {[%clk 0:04:00.8]} 20. Rxh5 {[%clk 0:04:32.8]}
20... Qxa2 {[%clk 0:03:58.8]} 21. Rxg5 {[%clk 0:04:23.4]} 21... Qa1+ {[%clk
0:03:56.6]} 22. Qb1 {[%clk 0:04:22.5]} 22... Qa5 {[%clk 0:03:37.3]} 23. Rxa5
{[%clk 0:04:21.4]} 23... Bf5 {[%clk 0:03:34.5]} 24. Qxf5+ {[%clk 0:04:18.3]}
24... Kb8 {[%clk 0:03:30.4]} 25. Rd5 {[%clk 0:04:13.2]} 25... Rd6 {[%clk
0:03:27.5]} 26. Qf8+ {[%clk 0:04:12]} 26... Rd8 {[%clk 0:03:24.6]} 27. Rxd8#
{[%clk 0:04:09.6]} 1-0

[Event "Live Chess"]
[Site "Chess.com"]
[Date "2024.06.02"]
[Round "-"]
[White "JanMur7"]
[Black "stevochess11"]
[Result "1-0"]
[WhiteElo "2264"]
[BlackElo "1703"]
[TimeControl "300"]
[EndTime "8:55:34 PDT"]
[Termination "JanMur7 won by resignation"]

1. c4 {[%clk 0:04:56.1]} 1... c6 {[%clk 0:04:58.3]} 2. Nc3 {[%clk 0:04:54.8]}
2... f6 {[%clk 0:04:56.9]} 3. d4 {[%clk 0:04:54.2]} 3... e5 {[%clk 0:04:56.1]}
4. dxe5 {[%clk 0:04:52.7]} 4... Bb4 {[%clk 0:04:53.8]} 5. e4 {[%clk 0:04:50.9]}
5... Bxc3+ {[%clk 0:04:51.2]} 6. bxc3 {[%clk 0:04:44.8]} 6... Qa5 {[%clk
0:04:50.2]} 7. Bd2 {[%clk 0:04:36.9]} 7... Qxe5 {[%clk 0:04:48.4]} 8. Bd3 {[%clk
0:04:36.2]} 8... Ne7 {[%clk 0:04:42.4]} 9. Nf3 {[%clk 0:04:33.9]} 9... Qh5
{[%clk 0:04:41]} 10. O-O {[%clk 0:04:30.8]} 10... d5 {[%clk 0:04:37.1]} 11. cxd5
{[%clk 0:04:29.6]} 11... cxd5 {[%clk 0:04:36.9]} 12. exd5 {[%clk 0:04:28.9]}
12... Nxd5 {[%clk 0:04:35.4]} 13. Re1+ {[%clk 0:04:28.2]} 13... Kf7 {[%clk
0:04:34.5]} 14. Bc4 {[%clk 0:04:26.7]} 14... Be6 {[%clk 0:04:28.2]} 15. Ne5+
{[%clk 0:04:25]} 15... Qxe5 {[%clk 0:04:19.8]} 16. Rxe5 {[%clk 0:04:22.2]} 16...
fxe5 {[%clk 0:04:19.7]} 17. Qf3+ {[%clk 0:04:21.1]} 17... Nf6 {[%clk 0:04:17]}
18. Qxb7+ {[%clk 0:04:15.4]} 18... Nbd7 {[%clk 0:04:10.6]} 19. Bxe6+ {[%clk
0:04:14.2]} 19... Kxe6 {[%clk 0:04:09.6]} 20. Bg5 {[%clk 0:04:13.5]} 20... Rhb8
{[%clk 0:04:01.9]} 21. Qc6+ {[%clk 0:04:12.2]} 21... Kf5 {[%clk 0:03:53.6]} 22.
Bxf6 {[%clk 0:04:09.4]} 22... Nxf6 {[%clk 0:03:51.8]} 23. h3 {[%clk 0:04:07.5]}
23... Rc8 {[%clk 0:03:48.8]} 24. Qf3+ {[%clk 0:04:06]} 24... Ke6 {[%clk
0:03:47.6]} 25. Re1 {[%clk 0:04:04.6]} 25... Rab8 {[%clk 0:03:44.8]} 26. Qg3
{[%clk 0:04:02.7]} 26... Rc5 {[%clk 0:03:43]} 27. Qxg7 {[%clk 0:04:00.6]} 27...
Rxc3 {[%clk 0:03:40.5]} 28. Qxa7 {[%clk 0:03:58.7]} 28... Rb2 {[%clk 0:03:36.7]}
29. Qa6+ {[%clk 0:03:54.7]} 29... Kf5 {[%clk 0:03:34.7]} 30. Qa5 {[%clk
0:03:45.4]} 30... Ne4 {[%clk 0:03:29.3]} 31. Rxe4 {[%clk 0:03:43.3]} 31... Rc1+
{[%clk 0:03:25.7]} 32. Re1 {[%clk 0:03:42.7]} 32... Rxe1+ {[%clk 0:03:20.2]} 33.
Qxe1 {[%clk 0:03:42.6]} 33... Rxa2 {[%clk 0:03:19.4]} 34. Qb1+ {[%clk
0:03:41.1]} 1-0

[Event "Live Chess"]
[Site "Chess.com"]
[Date "2024.06.02"]
[Round "-"]
[White "CheDA13"]
[Black "BigAl"]
[Result "0-1"]
[WhiteElo "1510"]
[BlackElo "2539"]
[TimeControl "300"]
[EndTime "8:55:51 PDT"]
[Termination "BigAl won by resignation"]

1. e4 {[%clk 0:04:56.9]} 1... c5 {[%clk 0:04:53.1]} 2. Nf3 {[%clk 0:04:54.9]}
2... e6 {[%clk 0:04:52.1]} 3. d4 {[%clk 0:04:52.6]} 3... cxd4 {[%clk 0:04:51.5]}
4. Nxd4 {[%clk 0:04:52.5]} 4... a6 {[%clk 0:04:51]} 5. Bd3 {[%clk 0:04:49.3]}
5... Qc7 {[%clk 0:04:40.7]} 6. O-O {[%clk 0:04:40.6]} 6... Nf6 {[%clk
0:04:39.9]} 7. c4 {[%clk 0:04:30.3]} 7... Nc6 {[%clk 0:04:38.4]} 8. Nxc6 {[%clk
0:04:19.4]} 8... dxc6 {[%clk 0:04:37.5]} 9. Nc3 {[%clk 0:04:17.9]} 9... e5
{[%clk 0:04:36.2]} 10. Be3 {[%clk 0:04:15.3]} 10... Ng4 {[%clk 0:04:34.7]} 11.
Bd2 {[%clk 0:04:10.8]} 11... Bc5 {[%clk 0:04:33.8]} 12. h3 {[%clk 0:04:04.3]}
12... Nf6 {[%clk 0:04:32.9]} 13. Re1 {[%clk 0:04:01.2]} 13... Be6 {[%clk
0:04:30.5]} 14. Be3 {[%clk 0:03:59.4]} 14... Bxe3 {[%clk 0:04:19.4]} 15. Rxe3
{[%clk 0:03:58.4]} 15... Rd8 {[%clk 0:04:16.4]} 16. Qc2 {[%clk 0:03:56.4]} 16...
O-O {[%clk 0:04:11.3]} 17. Rd1 {[%clk 0:03:51.6]} 17... Qe7 {[%clk 0:03:51.6]}
18. b3 {[%clk 0:03:33.6]} 18... g6 {[%clk 0:03:40.6]} 19. Re2 {[%clk 0:03:11.7]}
19... Nh5 {[%clk 0:03:37.9]} 20. Red2 {[%clk 0:03:06.6]} 20... Qg5 {[%clk
0:03:26.2]} 21. Kh1 {[%clk 0:02:44.8]} 21... Kg7 {[%clk 0:03:12.4]} 22. Bf1
{[%clk 0:02:35.8]} 22... Nf4 {[%clk 0:03:00.6]} 23. Rxd8 {[%clk 0:02:26.7]}
23... Rxd8 {[%clk 0:03:00.5]} 24. Rxd8 {[%clk 0:02:25.3]} 24... Qxd8 {[%clk
0:02:58.5]} 25. Ne2 {[%clk 0:02:18.9]} 25... Nd3 {[%clk 0:02:50.5]} 26. Nc1
{[%clk 0:02:07.4]} 26... Nxc1 {[%clk 0:02:41.5]} 27. Qxc1 {[%clk 0:02:05.8]}
27... Qd4 {[%clk 0:02:40.8]} 28. Qc2 {[%clk 0:01:58.5]} 28... c5 {[%clk
0:02:37]} 29. g3 {[%clk 0:01:52.9]} 29... h5 {[%clk 0:02:35.3]} 30. Bg2 {[%clk
0:01:51.2]} 30... b5 {[%clk 0:02:27.9]} 31. cxb5 {[%clk 0:01:46.8]} 31... axb5
{[%clk 0:02:27.8]} 32. Kg1 {[%clk 0:01:46.1]} 32... c4 {[%clk 0:02:18.1]} 33.
bxc4 {[%clk 0:01:30]} 33... bxc4 {[%clk 0:02:16.7]} 34. a3 {[%clk 0:01:21.4]}
34... Qa1+ {[%clk 0:02:13.6]} 35. Kh2 {[%clk 0:01:17.3]} 35... Qxa3 {[%clk
0:02:13.2]} 36. Bf1 {[%clk 0:01:12.8]} 36... Qb3 {[%clk 0:02:11.2]} 37. Qd2
{[%clk 0:00:58.6]} 37... c3 {[%clk 0:02:05.3]} 38. Qc1 {[%clk 0:00:52.3]} 38...
Qb2 {[%clk 0:01:58.2]} 39. Qxb2 {[%clk 0:00:45.2]} 39... cxb2 {[%clk 0:01:56.9]}
40. Bd3 {[%clk 0:00:45.1]} 40... Ba2 {[%clk 0:01:54.7]} 41. f4 {[%clk
0:00:44.6]} 41... f6 {[%clk 0:01:52.9]} 42. fxe5 {[%clk 0:00:42.1]} 42... fxe5
{[%clk 0:01:51.7]} 43. g4 {[%clk 0:00:41.1]} 43... h4 {[%clk 0:01:50.2]} 0-1